[Event "*** Titled Tuesday Blitz"]
[Site "Chess.com"]
[Date "2018.09.04"]
[Round "4"]
[White "Marcus_Harvey"]
[Black "Slovak_fighter2000"]
[Result "1-0"]
[WhiteElo "2698"]
[BlackElo "2399"]
[TimeControl "180+2"]
[EndTime "14:29:28 PDT"]
[Termination "Marcus_Harvey won on time"]

1. Nf3 {[%clk 0:03:00.9]} 1... Nf6 {[%clk 0:03:00.7]} 2. b3 {[%clk 0:03:01.5]}
2... g6 {[%clk 0:03:01.4]} 3. Bb2 {[%clk 0:03:03.1]} 3... Bg7 {[%clk 0:03:02.9]}
4. e3 {[%clk 0:03:05]} 4... O-O {[%clk 0:03:04.2]} 5. Be2 {[%clk 0:03:06.6]}
5... d6 {[%clk 0:03:04.4]} 6. d4 {[%clk 0:03:07.4]} 6... Nc6 {[%clk 0:03:03.1]}
7. O-O {[%clk 0:03:08.5]} 7... e5 {[%clk 0:03:01.2]} 8. dxe5 {[%clk 0:03:10.4]}
8... Ng4 {[%clk 0:03:00.6]} 9. c4 {[%clk 0:03:11.5]} 9... Ngxe5 {[%clk 0:02:59]}
10. Nxe5 {[%clk 0:03:12.5]} 10... Nxe5 {[%clk 0:03:00.9]} 11. Nc3 {[%clk
0:03:13.6]} 11... Be6 {[%clk 0:03:00]} 12. Qd2 {[%clk 0:03:11.3]} 12... Nd7
{[%clk 0:02:53.5]} 13. Rad1 {[%clk 0:03:11.7]} 13... Qe7 {[%clk 0:02:48.5]} 14.
Bf3 {[%clk 0:03:12.7]} 14... Rab8 {[%clk 0:02:40.6]} 15. Nb5 {[%clk 0:03:12]}
15... Ne5 {[%clk 0:02:34]} 16. Be2 {[%clk 0:03:04.4]} 16... a6 {[%clk
0:02:32.7]} 17. Nd4 {[%clk 0:03:05.6]} 17... Bd7 {[%clk 0:02:31.9]} 18. Rfe1
{[%clk 0:03:03.1]} 18... Nc6 {[%clk 0:02:30.1]} 19. Bf3 {[%clk 0:02:56.3]} 19...
Ne5 {[%clk 0:02:26]} 20. Be2 {[%clk 0:02:55.7]} 20... Nc6 {[%clk 0:02:26.7]} 21.
b4 {[%clk 0:02:49.3]} 21... Nxd4 {[%clk 0:02:25.6]} 22. Bxd4 {[%clk 0:02:50.1]}
22... Bxd4 {[%clk 0:02:24.6]} 23. Qxd4 {[%clk 0:02:50.5]} 23... Be6 {[%clk
0:02:19.3]} 24. a4 {[%clk 0:02:42.5]} 24... c5 {[%clk 0:02:16.3]} 25. Qb2 {[%clk
0:02:43.1]} 25... cxb4 {[%clk 0:02:05.6]} 26. Qxb4 {[%clk 0:02:42.5]} 26... Rfc8
{[%clk 0:02:07]} 27. Rd4 {[%clk 0:02:36.1]} 27... Rc7 {[%clk 0:01:50.3]} 28.
Red1 {[%clk 0:02:32.2]} 28... Rbc8 {[%clk 0:01:51.3]} 29. h4 {[%clk 0:02:23.4]}
29... h5 {[%clk 0:01:50.9]} 30. g3 {[%clk 0:02:17.4]} 30... Kg7 {[%clk
0:01:49.5]} 31. Rxd6 {[%clk 0:02:11.9]} 31... Qf6 {[%clk 0:01:39.1]} 32. R6d4
{[%clk 0:02:09.4]} 32... Qe5 {[%clk 0:01:38]} 33. R1d2 {[%clk 0:01:51.4]} 33...
Qc5 {[%clk 0:01:26.8]} 34. Qb2 {[%clk 0:01:49.9]} 34... Qe5 {[%clk 0:01:27.1]}
35. Rf4 {[%clk 0:01:37.5]} 35... Qxb2 {[%clk 0:01:25.4]} 36. Rxb2 {[%clk
0:01:39.4]} 36... Bxc4 {[%clk 0:01:24.5]} 37. Bxc4 {[%clk 0:00:59.3]} 37... Rxc4
{[%clk 0:01:17.6]} 38. Rxb7 {[%clk 0:01:00.4]} 38... Rxf4 {[%clk 0:01:17.5]} 39.
gxf4 {[%clk 0:01:01.9]} 39... Rc4 {[%clk 0:01:18]} 40. a5 {[%clk 0:01:01.2]}
40... Rc5 {[%clk 0:01:16.8]} 41. Kg2 {[%clk 0:01:02.4]} 41... Rxa5 {[%clk
0:01:17.7]} 42. Ra7 {[%clk 0:01:03.7]} 42... Ra4 {[%clk 0:01:16.7]} 43. Kf3
{[%clk 0:01:04.5]} 43... Kf6 {[%clk 0:01:15.3]} 44. Kg3 {[%clk 0:01:04.6]} 44...
Ra1 {[%clk 0:01:12.7]} 45. f3 {[%clk 0:01:04.6]} 45... Rg1+ {[%clk 0:01:12.8]}
46. Kf2 {[%clk 0:01:05.2]} 46... Ra1 {[%clk 0:01:14.7]} 47. e4 {[%clk
0:01:05.7]} 47... Ra2+ {[%clk 0:01:14.8]} 48. Kg3 {[%clk 0:01:06.8]} 48... Ra3
{[%clk 0:01:14.2]} 49. e5+ {[%clk 0:01:07.4]} 49... Ke6 {[%clk 0:01:13.9]} 50.
Rb7 {[%clk 0:01:08.7]} 50... Ra1 {[%clk 0:01:09.8]} 51. Rb6+ {[%clk 0:01:09.8]}
51... Ke7 {[%clk 0:01:10.6]} 52. f5 {[%clk 0:01:06.5]} 52... gxf5 {[%clk
0:01:10.1]} 53. Kf4 {[%clk 0:01:07.8]} 53... Ra4+ {[%clk 0:00:51.3]} 54. Kxf5
{[%clk 0:01:08.7]} 54... Rxh4 {[%clk 0:00:50.8]} 55. Rxa6 {[%clk 0:01:04.7]}
55... Rb4 {[%clk 0:00:43.2]} 56. f4 {[%clk 0:01:01.4]} 56... Rb1 {[%clk
0:00:31.6]} 57. Ra7+ {[%clk 0:00:54.3]} 57... Kf8 {[%clk 0:00:32.2]} 58. Kf6
{[%clk 0:00:53.6]} 58... Rb6+ {[%clk 0:00:32]} 59. Kg5 {[%clk 0:00:54.9]} 59...
Kg7 {[%clk 0:00:30.9]} 60. Kxh5 {[%clk 0:00:53.3]} 60... Kf8 {[%clk 0:00:30.8]}
61. Kg5 {[%clk 0:00:52.5]} 61... Rb1 {[%clk 0:00:24.4]} 62. f5 {[%clk
0:00:52.5]} 62... Rb6 {[%clk 0:00:16.6]} 63. f6 {[%clk 0:00:42.2]} 63... Rb8
{[%clk 0:00:14.8]} 64. Kf5 {[%clk 0:00:42.5]} 64... Rc8 {[%clk 0:00:15.3]} 65.
Ra1 {[%clk 0:00:33.5]} 65... Rb8 {[%clk 0:00:16.2]} 66. Rh1 {[%clk 0:00:34.2]}
66... Kg8 {[%clk 0:00:17.2]} 67. Rh2 {[%clk 0:00:32]} 67... Rb1 {[%clk
0:00:14.6]} 68. Ra2 {[%clk 0:00:29.9]} 68... Rb8 {[%clk 0:00:13.8]} 69. Ra5
{[%clk 0:00:22.7]} 69... Kf8 {[%clk 0:00:13.7]} 70. e6 {[%clk 0:00:23.6]} 70...
fxe6+ {[%clk 0:00:14.4]} 71. Kg6 {[%clk 0:00:25.2]} 71... Re8 {[%clk 0:00:07.6]}
72. Rh5 {[%clk 0:00:20.2]} 1-0

[Event "*** Titled Tuesday Blitz"]
[Site "Chess.com"]
[Date "2018.09.04"]
[Round "4"]
[White "JoakimVonAnd"]
[Black "suyu28"]
[Result "1/2-1/2"]
[WhiteElo "2366"]
[BlackElo "2491"]
[TimeControl "180+2"]
[EndTime "14:29:41 PDT"]
[Termination "Game drawn by stalemate"]

1. d4 {[%clk 0:03:01]} 1... d5 {[%clk 0:02:56.7]} 2. c4 {[%clk 0:03:00.6]} 2...
c6 {[%clk 0:02:56]} 3. Nf3 {[%clk 0:03:00.8]} 3... Nf6 {[%clk 0:02:56.3]} 4. Qc2
{[%clk 0:03:01.8]} 4... dxc4 {[%clk 0:02:56.2]} 5. e4 {[%clk 0:03:02.3]} 5... b5
{[%clk 0:02:50.4]} 6. b3 {[%clk 0:03:02.9]} 6... cxb3 {[%clk 0:02:50.1]} 7. axb3
{[%clk 0:03:04.8]} 7... e6 {[%clk 0:02:50.2]} 8. Bd2 {[%clk 0:03:05.5]} 8... a5
{[%clk 0:02:49.1]} 9. Bd3 {[%clk 0:03:05.1]} 9... h6 {[%clk 0:02:41]} 10. O-O
{[%clk 0:03:04.6]} 10... Be7 {[%clk 0:02:40.5]} 11. Rc1 {[%clk 0:03:03.6]} 11...
Bb7 {[%clk 0:02:39]} 12. Nc3 {[%clk 0:03:04]} 12... O-O {[%clk 0:02:39]} 13. e5
{[%clk 0:02:54.1]} 13... Nd5 {[%clk 0:02:32.5]} 14. Ne4 {[%clk 0:02:43.4]} 14...
b4 {[%clk 0:02:27.1]} 15. Nc5 {[%clk 0:02:21.8]} 15... Bxc5 {[%clk 0:02:25.2]}
16. Qxc5 {[%clk 0:02:23.7]} 16... Ba6 {[%clk 0:02:22.5]} 17. Qxa5 {[%clk
0:02:12.6]} 17... Qxa5 {[%clk 0:02:00.1]} 18. Rxa5 {[%clk 0:02:12.9]} 18... Bb7
{[%clk 0:01:58.6]} 19. Rxa8 {[%clk 0:01:58.1]} 19... Bxa8 {[%clk 0:02:00.5]} 20.
Be4 {[%clk 0:01:58.4]} 20... Na6 {[%clk 0:01:50.8]} 21. Ra1 {[%clk 0:01:37.4]}
21... Bb7 {[%clk 0:01:27]} 22. Ne1 {[%clk 0:01:33.4]} 22... c5 {[%clk
0:01:22.6]} 23. Bd3 {[%clk 0:01:33.7]} 23... Ndc7 {[%clk 0:01:18.4]} 24. Nc2
{[%clk 0:01:21.5]} 24... cxd4 {[%clk 0:01:15.7]} 25. Nxb4 {[%clk 0:01:22]} 25...
Nc5 {[%clk 0:01:13.6]} 26. Bc4 {[%clk 0:01:21.4]} 26... Rb8 {[%clk 0:01:11.1]}
27. Ra7 {[%clk 0:01:16.5]} 27... Nd5 {[%clk 0:00:54.8]} 28. Nc2 {[%clk
0:00:54.1]} 28... d3 {[%clk 0:00:50.3]} 29. Ne1 {[%clk 0:00:49.6]} 29... Ne4
{[%clk 0:00:49.5]} 30. Ra2 {[%clk 0:00:41]} 30... Ra8 {[%clk 0:00:42.6]} 31.
Rxa8+ {[%clk 0:00:20.8]} 31... Bxa8 {[%clk 0:00:42.6]} 32. Nf3 {[%clk
0:00:22.3]} 32... Nxd2 {[%clk 0:00:30.6]} 33. Nxd2 {[%clk 0:00:22.2]} 33... Nb4
{[%clk 0:00:27.9]} 34. f3 {[%clk 0:00:23.2]} 34... Bd5 {[%clk 0:00:24.9]} 35.
Bb5 {[%clk 0:00:20.4]} 35... g5 {[%clk 0:00:19.7]} 36. Kf2 {[%clk 0:00:21]}
36... Bc6 {[%clk 0:00:20.7]} 37. Bxc6 {[%clk 0:00:21.3]} 37... Nxc6 {[%clk
0:00:21.4]} 38. Nc4 {[%clk 0:00:22.4]} 38... Nb4 {[%clk 0:00:16.7]} 39. Ke3
{[%clk 0:00:22.8]} 39... Kf8 {[%clk 0:00:02.9]} 40. Kd2 {[%clk 0:00:23.7]} 40...
Ke7 {[%clk 0:00:04.8]} 41. Kc3 {[%clk 0:00:24.8]} 41... Nd5+ {[%clk 0:00:06.7]}
42. Kxd3 {[%clk 0:00:26.1]} 42... Nf4+ {[%clk 0:00:07.1]} 43. Kd4 {[%clk
0:00:25.5]} 43... Nxg2 {[%clk 0:00:06.9]} 44. b4 {[%clk 0:00:26.8]} 44... Ne1
{[%clk 0:00:05.9]} 45. Ke4 {[%clk 0:00:26.4]} 45... Nc2 {[%clk 0:00:02.7]} 46.
b5 {[%clk 0:00:27]} 46... Kd7 {[%clk 0:00:03]} 47. b6 {[%clk 0:00:27.9]} 47...
Kc6 {[%clk 0:00:03.9]} 48. Nd6 {[%clk 0:00:28.6]} 48... Kxb6 {[%clk 0:00:04.7]}
49. Nxf7 {[%clk 0:00:29.5]} 49... Kc6 {[%clk 0:00:06]} 50. Nxh6 {[%clk
0:00:30.5]} 50... Kd7 {[%clk 0:00:07.3]} 51. Nf7 {[%clk 0:00:31.5]} 51... Ke7
{[%clk 0:00:07.9]} 52. Nxg5 {[%clk 0:00:32.5]} 52... Ne1 {[%clk 0:00:09.8]} 53.
h4 {[%clk 0:00:33.2]} 53... Ng2 {[%clk 0:00:10.3]} 54. h5 {[%clk 0:00:34]} 54...
Nh4 {[%clk 0:00:11.5]} 55. h6 {[%clk 0:00:33.4]} 55... Ng6 {[%clk 0:00:12.5]}
56. h7 {[%clk 0:00:32.6]} 56... Nh8 {[%clk 0:00:07.2]} 57. f4 {[%clk 0:00:33.9]}
57... Ng6 {[%clk 0:00:06.4]} 58. f5 {[%clk 0:00:35]} 58... exf5+ {[%clk
0:00:08]} 59. Kxf5 {[%clk 0:00:36.1]} 59... Nh8 {[%clk 0:00:09.9]} 60. e6 {[%clk
0:00:35.7]} 60... Ke8 {[%clk 0:00:08.6]} 61. Kf6 {[%clk 0:00:36.2]} 61... Kf8
{[%clk 0:00:07.2]} 62. e7+ {[%clk 0:00:31.8]} 62... Ke8 {[%clk 0:00:06.4]} 63.
Kg7 {[%clk 0:00:33]} 63... Kxe7 {[%clk 0:00:07.3]} 64. Kxh8 {[%clk 0:00:33.9]}
64... Kf8 {[%clk 0:00:08.2]} 65. Ne6+ {[%clk 0:00:30.3]} 65... Kf7 {[%clk
0:00:10.1]} 66. Nf4 {[%clk 0:00:29.8]} 66... Kf8 {[%clk 0:00:12]} 67. Nh5 {[%clk
0:00:31.2]} 67... Kf7 {[%clk 0:00:13.3]} 68. Ng3 {[%clk 0:00:32.5]} 68... Kf8
{[%clk 0:00:14.7]} 69. Ne4 {[%clk 0:00:34.2]} 69... Kf7 {[%clk 0:00:16.1]} 70.
Nd6+ {[%clk 0:00:36]} 70... Kf8 {[%clk 0:00:17.4]} 71. Ne8 {[%clk 0:00:37.9]}
71... Kf7 {[%clk 0:00:18.6]} 72. Nf6 {[%clk 0:00:38]} 72... Kf8 {[%clk 0:00:20]}
73. Ng8 {[%clk 0:00:39.4]} 73... Kf7 {[%clk 0:00:20.9]} 74. Ne7 {[%clk
0:00:41.3]} 74... Kf8 {[%clk 0:00:22.3]} 75. Ng6+ {[%clk 0:00:42.9]} 75... Kf7
{[%clk 0:00:23.6]} 76. Nf8 {[%clk 0:00:44.8]} 76... Kxf8 {[%clk 0:00:24.6]}
1/2-1/2

[Event "*** Titled Tuesday Blitz"]
[Site "Chess.com"]
[Date "2018.09.04"]
[Round "4"]
[White "dimke2802"]
[Black "SmoothAsAHedgehog"]
[Result "1/2-1/2"]
[WhiteElo "2417"]
[BlackElo "2576"]
[TimeControl "180+2"]
[EndTime "14:30:08 PDT"]
[Termination "Game drawn by agreement"]

1. d4 {[%clk 0:03:01.9]} 1... Nf6 {[%clk 0:03:00.8]} 2. Nf3 {[%clk 0:03:02.6]}
2... e6 {[%clk 0:03:02]} 3. c4 {[%clk 0:03:03.6]} 3... Bb4+ {[%clk 0:03:01.9]}
4. Bd2 {[%clk 0:03:03.8]} 4... Qe7 {[%clk 0:03:02.9]} 5. g3 {[%clk 0:03:04.9]}
5... b6 {[%clk 0:03:03.2]} 6. Bg2 {[%clk 0:03:05]} 6... Bb7 {[%clk 0:03:04.6]}
7. O-O {[%clk 0:03:06]} 7... O-O {[%clk 0:03:05.5]} 8. Bg5 {[%clk 0:03:06]} 8...
h6 {[%clk 0:03:04.1]} 9. Bxf6 {[%clk 0:03:04.8]} 9... Qxf6 {[%clk 0:03:05.9]}
10. a3 {[%clk 0:03:06]} 10... Be7 {[%clk 0:03:06.4]} 11. Nc3 {[%clk 0:03:06.7]}
11... d6 {[%clk 0:03:03.7]} 12. e4 {[%clk 0:03:04.9]} 12... Bd8 {[%clk
0:03:03.1]} 13. e5 {[%clk 0:02:59.1]} 13... Qe7 {[%clk 0:03:02.6]} 14. Qe2
{[%clk 0:02:59.2]} 14... dxe5 {[%clk 0:03:02.5]} 15. dxe5 {[%clk 0:02:55.1]}
15... Nd7 {[%clk 0:02:57.6]} 16. Rfd1 {[%clk 0:02:53]} 16... Qe8 {[%clk
0:02:56.1]} 17. h4 {[%clk 0:02:14.3]} 17... Be7 {[%clk 0:02:51.9]} 18. h5 {[%clk
0:02:15.3]} 18... Rd8 {[%clk 0:02:47.4]} 19. Rd4 {[%clk 0:02:15.6]} 19... Nc5
{[%clk 0:02:42.4]} 20. Rg4 {[%clk 0:02:16.4]} 20... Nb3 {[%clk 0:02:33.7]} 21.
Re1 {[%clk 0:02:13.2]} 21... Bc5 {[%clk 0:02:25.9]} 22. Ne4 {[%clk 0:02:06.1]}
22... Bxe4 {[%clk 0:02:25.7]} 23. Qxe4 {[%clk 0:02:01.2]} 23... Kh8 {[%clk
0:02:26.6]} 24. Bf1 {[%clk 0:01:51.8]} 24... Nd4 {[%clk 0:02:14.1]} 25. Nh4
{[%clk 0:01:24.4]} 25... f5 {[%clk 0:02:04.8]} 26. exf6 {[%clk 0:01:23.2]} 26...
Rxf6 {[%clk 0:02:05.9]} 27. Bd3 {[%clk 0:01:19.8]} 27... Nf5 {[%clk 0:02:00.8]}
28. Nxf5 {[%clk 0:01:03.2]} 28... Rxf5 {[%clk 0:02:01.2]} 29. Rf4 {[%clk
0:00:59.4]} 29... Qxh5 {[%clk 0:01:50.2]} 30. Rxf5 {[%clk 0:00:57.8]} 30... Qxf5
{[%clk 0:01:36.2]} 31. Qxf5 {[%clk 0:00:55.6]} 31... exf5 {[%clk 0:01:38]} 32.
Bf1 {[%clk 0:00:52.3]} 32... Rd2 {[%clk 0:01:34.1]} 33. Re2 {[%clk 0:00:52.9]}
33... Rxe2 {[%clk 0:01:33.9]} 34. Bxe2 {[%clk 0:00:53.5]} 34... g6 {[%clk
0:01:32.6]} 35. Kg2 {[%clk 0:00:47.9]} 35... Kg7 {[%clk 0:01:33.5]} 36. b4
{[%clk 0:00:44.3]} 36... Bd4 {[%clk 0:01:33.7]} 37. b5 {[%clk 0:00:45.7]} 37...
Kf6 {[%clk 0:01:33.7]} 38. f4 {[%clk 0:00:38.9]} 38... g5 {[%clk 0:01:25.3]} 39.
Kf3 {[%clk 0:00:37.7]} 39... g4+ {[%clk 0:01:21.1]} 40. Kg2 {[%clk 0:00:38.3]}
40... Bb2 {[%clk 0:01:13]} 41. a4 {[%clk 0:00:38.9]} 41... Bc3 {[%clk
0:01:14.5]} 42. Bd3 {[%clk 0:00:39.5]} 42... Be1 {[%clk 0:01:13.7]} 43. Bc2
{[%clk 0:00:36.8]} 43... h5 {[%clk 0:01:13.8]} 44. Bd3 {[%clk 0:00:37.3]} 44...
Bd2 {[%clk 0:01:11.1]} 45. Bc2 {[%clk 0:00:27.5]} 45... h4 {[%clk 0:01:11.1]}
46. Bd3 {[%clk 0:00:27.7]} 46... Be3 {[%clk 0:00:31.6]} 47. Bc2 {[%clk
0:00:24.4]} 47... Bd2 {[%clk 0:00:27.2]} 48. Bd3 {[%clk 0:00:24.8]} 48... Be1
{[%clk 0:00:27.2]} 49. gxh4 {[%clk 0:00:24]} 49... Bd2 {[%clk 0:00:26.4]} 50.
Kg3 {[%clk 0:00:24.3]} 50... Be1+ {[%clk 0:00:27.9]} 51. Kg2 {[%clk 0:00:25.2]}
51... Bxh4 {[%clk 0:00:29.3]} 52. Bc2 {[%clk 0:00:26]} 52... Be1 {[%clk
0:00:30.4]} 53. Bd3 {[%clk 0:00:27.1]} 53... Bd2 {[%clk 0:00:31.1]} 54. Kg3
{[%clk 0:00:28.4]} 54... Bb4 {[%clk 0:00:29.6]} 55. Bc2 {[%clk 0:00:28.8]} 55...
Bc5 {[%clk 0:00:28]} 56. Bd3 {[%clk 0:00:29.2]} 56... Ke6 {[%clk 0:00:28.7]} 57.
Bc2 {[%clk 0:00:29.7]} 57... Bb4 {[%clk 0:00:30.1]} 58. Bd3 {[%clk 0:00:30.6]}
58... Be1+ {[%clk 0:00:31.3]} 59. Kg2 {[%clk 0:00:31.3]} 59... Bd2 {[%clk
0:00:29.1]} 60. Kg3 {[%clk 0:00:31.7]} 60... Ba5 {[%clk 0:00:30.4]} 61. Bc2
{[%clk 0:00:32.1]} 61... Be1+ {[%clk 0:00:28.9]} 62. Kg2 {[%clk 0:00:32.3]}
62... g3 {[%clk 0:00:30.4]} 63. Kf3 {[%clk 0:00:31.9]} 63... Bf2 {[%clk
0:00:24.8]} 64. Bd3 {[%clk 0:00:32.4]} 64... Kf6 {[%clk 0:00:17.4]} 65. Bc2
{[%clk 0:00:33]} 65... Be1 {[%clk 0:00:16.5]} 66. Bd3 {[%clk 0:00:33.9]} 66...
Kg6 {[%clk 0:00:17.7]} 67. Bc2 {[%clk 0:00:34]} 67... Bf2 {[%clk 0:00:18.5]} 68.
Bd3 {[%clk 0:00:34.9]} 68... Kf6 {[%clk 0:00:17.7]} 69. Bc2 {[%clk 0:00:35.8]}
69... Ke6 {[%clk 0:00:19]} 70. Bd3 {[%clk 0:00:36.8]} 70... Kd6 {[%clk
0:00:18.9]} 71. Bxf5 {[%clk 0:00:37.4]} 71... Kc5 {[%clk 0:00:20.5]} 72. Be6
{[%clk 0:00:29.4]} 72... Kb4 {[%clk 0:00:20.1]} 73. f5 {[%clk 0:00:30.7]} 73...
Kxa4 {[%clk 0:00:19.9]} 74. f6 {[%clk 0:00:31.7]} 74... Ka5 {[%clk 0:00:12.5]}
75. f7 {[%clk 0:00:29.1]} 75... Bc5 {[%clk 0:00:14]} 76. Kxg3 {[%clk 0:00:30.1]}
76... a6 {[%clk 0:00:15.5]} 77. bxa6 {[%clk 0:00:31.3]} 77... Kxa6 {[%clk
0:00:17.2]} 78. Kf3 {[%clk 0:00:32.8]} 78... c6 {[%clk 0:00:16.9]} 79. Ke4
{[%clk 0:00:34.1]} 79... b5 {[%clk 0:00:17.6]} 80. cxb5+ {[%clk 0:00:34.2]}
80... cxb5 {[%clk 0:00:18.9]} 81. Kd3 {[%clk 0:00:32.8]} 81... Bf8 {[%clk
0:00:20]} 82. Kc2 {[%clk 0:00:33.1]} 82... Kb6 {[%clk 0:00:20.6]} 83. Kb3 {[%clk
0:00:34.5]} 83... Kc5 {[%clk 0:00:20.5]} 84. Bh3 {[%clk 0:00:34.2]} 84... Kd6
{[%clk 0:00:21.3]} 85. Bf1 {[%clk 0:00:35.6]} 85... Ke7 {[%clk 0:00:22.5]} 86.
Bxb5 {[%clk 0:00:36.5]} 86... Kxf7 {[%clk 0:00:24.2]} 87. Bc4+ {[%clk
0:00:36.5]} 1/2-1/2

[Event "*** Titled Tuesday Blitz"]
[Site "Chess.com"]
[Date "2018.09.04"]
[Round "4"]
[White "Abund"]
[Black "BvsN"]
[Result "1-0"]
[WhiteElo "2451"]
[BlackElo "2236"]
[TimeControl "180+2"]
[EndTime "14:30:32 PDT"]
[Termination "Abund won by resignation"]

1. e4 {[%clk 0:02:35.8]} 1... c5 {[%clk 0:03:00]} 2. Nf3 {[%clk 0:02:31]} 2...
e6 {[%clk 0:03:00]} 3. c3 {[%clk 0:02:27.4]} 3... Nf6 {[%clk 0:03:00]} 4. Bd3
{[%clk 0:02:27.1]} 4... d5 {[%clk 0:02:58.6]} 5. e5 {[%clk 0:02:21.8]} 5... Nfd7
{[%clk 0:02:59.4]} 6. Bc2 {[%clk 0:02:18.5]} 6... c4 {[%clk 0:03:00.2]} 7. d4
{[%clk 0:02:11.2]} 7... cxd3 {[%clk 0:03:01.1]} 8. Qxd3 {[%clk 0:02:10.9]} 8...
Nc6 {[%clk 0:03:00.4]} 9. Qe2 {[%clk 0:02:06.2]} 9... Be7 {[%clk 0:02:56.6]} 10.
O-O {[%clk 0:02:06.2]} 10... O-O {[%clk 0:02:52.4]} 11. Bf4 {[%clk 0:02:07.1]}
11... b6 {[%clk 0:02:45.3]} 12. Nbd2 {[%clk 0:02:00.8]} 12... a5 {[%clk
0:02:44.3]} 13. Qd3 {[%clk 0:01:35]} 13... g6 {[%clk 0:02:37.2]} 14. Rfe1 {[%clk
0:01:15.1]} 14... Ba6 {[%clk 0:02:37.9]} 15. Qe3 {[%clk 0:01:16.1]} 15... Rc8
{[%clk 0:02:08.7]} 16. Bh6 {[%clk 0:01:15.9]} 16... Re8 {[%clk 0:02:10]} 17. Qf4
{[%clk 0:01:16.7]} 17... Bf8 {[%clk 0:01:53.8]} 18. Ng5 {[%clk 0:01:16.1]} 18...
Qe7 {[%clk 0:01:53.9]} 19. Qh4 {[%clk 0:01:15.3]} 19... Bxh6 {[%clk 0:01:31]}
20. Qxh6 {[%clk 0:01:15.9]} 20... Nf8 {[%clk 0:01:32.7]} 21. Re3 {[%clk
0:01:16]} 21... f6 {[%clk 0:01:32.8]} 22. exf6 {[%clk 0:01:05.5]} 22... Qxf6
{[%clk 0:01:32.1]} 23. Rae1 {[%clk 0:00:41.2]} 23... Rc7 {[%clk 0:01:22.2]} 24.
Ndf3 {[%clk 0:00:39.8]} 24... e5 {[%clk 0:01:14.9]} 25. Bb3 {[%clk 0:00:34.2]}
25... Bc4 {[%clk 0:01:05.2]} 26. Ne4 {[%clk 0:00:35]} 26... Qg7 {[%clk
0:00:56.9]} 27. Qxg7+ {[%clk 0:00:31.7]} 27... Kxg7 {[%clk 0:00:57.8]} 28. Nd6
{[%clk 0:00:31.5]} 28... Rd8 {[%clk 0:00:33.2]} 29. Nxc4 {[%clk 0:00:32.4]}
29... dxc4 {[%clk 0:00:34]} 30. Bxc4 {[%clk 0:00:34]} 30... Re7 {[%clk
0:00:30.1]} 31. Bb5 {[%clk 0:00:34.1]} 31... Na7 {[%clk 0:00:22.9]} 32. Bf1
{[%clk 0:00:26.6]} 32... Nc6 {[%clk 0:00:22.4]} 33. Nxe5 {[%clk 0:00:24.7]}
33... Nxe5 {[%clk 0:00:22.2]} 34. Rxe5 {[%clk 0:00:26.3]} 34... Rxe5 {[%clk
0:00:23.4]} 35. Rxe5 {[%clk 0:00:28.2]} 35... Rd2 {[%clk 0:00:23.7]} 36. Rb5
{[%clk 0:00:28.1]} 36... Nd7 {[%clk 0:00:21.4]} 37. a4 {[%clk 0:00:20.8]} 37...
Nc5 {[%clk 0:00:19]} 38. Rxb6 {[%clk 0:00:11.7]} 38... Nxa4 {[%clk 0:00:19.8]}
39. Rb7+ {[%clk 0:00:12.5]} 39... Kh6 {[%clk 0:00:19.1]} 40. b4 {[%clk
0:00:13.6]} 40... Nxc3 {[%clk 0:00:18.1]} 41. bxa5 {[%clk 0:00:14.2]} 41... Rd1
{[%clk 0:00:17.4]} 42. g3 {[%clk 0:00:15.2]} 42... Ra1 {[%clk 0:00:15.6]} 43. a6
{[%clk 0:00:16]} 43... Ne2+ {[%clk 0:00:08.4]} 44. Kg2 {[%clk 0:00:16.6]} 44...
Nd4 {[%clk 0:00:10.1]} 45. Bc4 {[%clk 0:00:14.7]} 45... Ra4 {[%clk 0:00:06.5]}
46. Bd3 {[%clk 0:00:14.5]} 46... Ra3 {[%clk 0:00:06.5]} 47. Bc4 {[%clk
0:00:15.6]} 47... Ra4 {[%clk 0:00:07.6]} 48. Rc7 {[%clk 0:00:16.8]} 48... Nf5
{[%clk 0:00:05]} 49. a7 {[%clk 0:00:16.9]} 49... Nd6 {[%clk 0:00:06.1]} 50. Bd5
{[%clk 0:00:18]} 50... Nb5 {[%clk 0:00:05.3]} 51. a8=Q {[%clk 0:00:09.6]} 51...
Rxa8 {[%clk 0:00:05.8]} 52. Rxh7+ {[%clk 0:00:10]} 52... Kxh7 {[%clk 0:00:05.8]}
53. Bxa8 {[%clk 0:00:11.9]} 53... Nd6 {[%clk 0:00:06.8]} 54. Bf3 {[%clk
0:00:13.4]} 54... Kg7 {[%clk 0:00:08.1]} 55. h4 {[%clk 0:00:14.8]} 55... Kf6
{[%clk 0:00:08.2]} 56. Be2 {[%clk 0:00:15.6]} 56... Nf5 {[%clk 0:00:09.1]} 57.
Bd3 {[%clk 0:00:16.2]} 57... Nd6 {[%clk 0:00:09.4]} 58. f4 {[%clk 0:00:09.2]}
58... Ne8 {[%clk 0:00:05.5]} 59. Kf3 {[%clk 0:00:07.8]} 59... Ng7 {[%clk
0:00:05.3]} 60. Kg4 {[%clk 0:00:08.7]} 60... Nh5 {[%clk 0:00:05.5]} 61. Be4
{[%clk 0:00:08.7]} 61... Ng7 {[%clk 0:00:04.7]} 62. Kf3 {[%clk 0:00:09.1]} 62...
Ne6 {[%clk 0:00:03.1]} 63. g4 {[%clk 0:00:10.4]} 63... Nd4+ {[%clk 0:00:04.2]}
64. Ke3 {[%clk 0:00:11.5]} 64... Ne6 {[%clk 0:00:05.4]} 65. f5 {[%clk
0:00:12.6]} 65... gxf5 {[%clk 0:00:06.2]} 66. Bxf5 {[%clk 0:00:14.5]} 66... Ng7
{[%clk 0:00:06.4]} 67. Kf4 {[%clk 0:00:15.9]} 67... Kf7 {[%clk 0:00:06.7]} 68.
g5 {[%clk 0:00:16.6]} 68... Nh5+ {[%clk 0:00:07.5]} 69. Kg4 {[%clk 0:00:17.6]}
69... Ng7 {[%clk 0:00:07.9]} 70. h5 {[%clk 0:00:18.9]} 70... Ne8 {[%clk
0:00:08.3]} 71. Bg6+ {[%clk 0:00:20]} 71... Kf8 {[%clk 0:00:06.6]} 72. Bxe8
{[%clk 0:00:21.9]} 72... Kxe8 {[%clk 0:00:08.3]} 73. Kf5 {[%clk 0:00:23.8]}
73... Kf7 {[%clk 0:00:10]} 74. g6+ {[%clk 0:00:24.6]} 74... Kg7 {[%clk
0:00:11.6]} 75. Kg5 {[%clk 0:00:26.5]} 75... Kg8 {[%clk 0:00:13.2]} 76. h6
{[%clk 0:00:28.4]} 76... Kh8 {[%clk 0:00:14.8]} 77. Kf6 {[%clk 0:00:30.2]} 77...
Kg8 {[%clk 0:00:16.2]} 78. h7+ {[%clk 0:00:27.5]} 78... Kh8 {[%clk 0:00:17.2]}
79. Ke7 {[%clk 0:00:27.8]} 79... Kg7 {[%clk 0:00:18.2]} 80. Ke8 {[%clk
0:00:28.4]} 80... Kh8 {[%clk 0:00:19.4]} 81. Ke7 {[%clk 0:00:29.3]} 81... Kg7
{[%clk 0:00:20.7]} 82. Ke6 {[%clk 0:00:30.4]} 82... Kh8 {[%clk 0:00:22.1]} 83.
Kf5 {[%clk 0:00:31.5]} 83... Kg7 {[%clk 0:00:23.3]} 84. Kg5 {[%clk 0:00:32.7]}
84... Kh8 {[%clk 0:00:24.5]} 85. Kf5 {[%clk 0:00:31.4]} 85... Kg7 {[%clk
0:00:25.6]} 86. h8=N {[%clk 0:00:27.3]} 86... Kf8 {[%clk 0:00:15.7]} 87. Nf7
{[%clk 0:00:27.5]} 87... Kg7 {[%clk 0:00:16.6]} 88. Ng5 {[%clk 0:00:28.5]} 88...
Kg8 {[%clk 0:00:17.5]} 89. Ne6 {[%clk 0:00:28.7]} 89... Kh8 {[%clk 0:00:17.9]}
90. Kf6 {[%clk 0:00:29.4]} 90... Kg8 {[%clk 0:00:19.2]} 91. g7 {[%clk 0:00:30]}
91... Kh7 {[%clk 0:00:19.8]} 92. Kf7 {[%clk 0:00:30.3]} 1-0